fUSD/lending_fUSD_20250226
["ID","MTS","AMOUNT","RATE_DAILY","PERIOD"]
[354556827,1740574259317,-1195.51,0.00041369,14]
[354556828,1740574259326,-500.0,0.00041369,14]
[354556829,1740574259337,-500.0,0.00041369,14]
[354556830,1740574259346,-1319.88,0.00041369,14]
[354556831,1740574259357,-727.34,0.00041369,14]
[354556832,1740574259367,-1198.01,0.00041369,14]
[354556833,1740574259378,-634.29,0.00041369,14]
[354556834,1740574259388,-879.08,0.00041369,14]
[354556835,1740574259398,-1657.95,0.00041369,14]
[354556836,1740574259408,-1710.29,0.00041369,14]
[354556837,1740574259418,-2325.13,0.00041369,14]
[354556838,1740574259428,-500.0,0.00041369,14]
[354556839,1740574259439,-1131.2,0.00041369,14]
[354556840,1740574259449,-650.2,0.00041369,14]
[354556841,1740574259459,-2026.83,0.00041369,14]
[354556842,1740574259469,-1603.84,0.00041369,14]
[354556843,1740574259479,-1456.03,0.00041369,14]
[354556844,1740574259490,-500.0,0.00041369,14]
[354556845,1740574259500,-500.0,0.00041369,14]
[354556846,1740574259514,-638.24,0.00041369,14]
[354556847,1740574259525,-2246.07,0.00041369,14]
[354556848,1740574259536,-500.0,0.00041369,14]
[354556849,1740574259547,-743.99,0.00041369,14]
[354556850,1740574259566,-500.0,0.00041369,14]
[354556851,1740574259576,-971.18,0.00041369,14]
[354556852,1740574259587,-244.92554339,0.00041369,14]
[354556853,1740574259597,-2523.94,0.00041369,14]
[354556854,1740574259608,-881.31,0.00041369,14]
[354556855,1740574259618,-1557.14,0.00041369,14]
[354556856,1740574259628,-1466.79,0.00041369,14]
[354556857,1740574259638,-1096.55,0.00041369,14]
[354556858,1740574259648,-500.0,0.00041369,14]
[354556859,1740574259658,-917.11,0.00041369,14]
[354556860,1740574259668,-553.17,0.00041369,14]
[354556861,1740574259677,-664.58,0.00041369,14]
[354556862,1740574259687,-1643.93,0.00041369,14]
[354556863,1740574259696,-500.0,0.00041369,14]
[354556864,1740574259706,-1045.05,0.00041369,14]
[354556865,1740574259717,-1760.23,0.00041369,14]
[354556866,1740574259727,-882.26,0.00041369,14]
[354556867,1740574259738,-825.28,0.00041369,14]
[354556868,1740574259748,-500.0,0.00041369,14]
[354556869,1740574259767,-500.0,0.00041369,14]
[354556870,1740574259778,-500.0,0.00041369,14]
[354556871,1740574259788,-505.26867307,0.00041369,14]
[354556872,1740574259798,-1955.03,0.00041369,14]
[354556873,1740574259808,-500.0,0.00041369,14]
[354556874,1740574259819,-517.10855947,0.00041369,14]
[354556875,1740574259829,-591.7,0.00041369,14]
[354556876,1740574259839,-500.0,0.00041369,14]
[354556877,1740574259851,-2374.77,0.00041369,14]
[354556878,1740574259862,-962.99,0.00041369,14]
[354556879,1740574259873,-500.0,0.00041369,14]
[354556880,1740574259883,-585.5,0.00041369,14]
[354556881,1740574259894,-500.0,0.00041369,14]
[354556882,1740574259905,-500.0,0.00041369,14]
[354556883,1740574259915,-500.0,0.00041369,14]
[354556884,1740574259926,-1000.0,0.00041369,120]
[354556885,1740574259936,-1527.45,0.00041369,14]
[354556886,1740574259947,-1955.87,0.00041369,14]
[354556887,1740574259957,-1595.95,0.00041369,14]
[354556888,1740574259968,-1142.9,0.00041369,14]
[354556889,1740574259978,-500.0,0.00041369,14]
[354556890,1740574259989,-500.0,0.00041369,14]
[354556891,1740574259999,-500.0,0.00041369,14]
[354556892,1740574260010,-2015.41,0.00041369,14]
[354556893,1740574260021,-1727.7,0.00041369,14]
[354556894,1740574260031,-790.73,0.00041369,14]
[354556895,1740574260042,-1058.94,0.00041369,14]
[354556896,1740574260052,-1341.53,0.00041369,14]
[354556897,1740574260062,-500.0,0.00041369,14]
[354556898,1740574260073,-500.0,0.00041369,14]
[354556899,1740574260083,-500.0,0.00041369,14]
[354556900,1740574260093,-500.0,0.00041369,14]
[354556901,1740574260104,-620.0676724,0.00041369,14]
[354556902,1740574260115,-1163.29,0.00041369,14]
[354556903,1740574260125,-500.0,0.00041369,14]
[354556904,1740574260135,-1036.03,0.00041369,14]
[354556905,1740574260145,-2668.14,0.00041369,14]
[354556906,1740574260155,-500.0,0.00041369,14]
[354556907,1740574260166,-2791.27,0.00041369,14]
[354556908,1740574260176,-500.0,0.00041369,14]
[354556909,1740574260186,-1106.65,0.00041369,14]
[354556910,1740574260198,-1409.3,0.00041369,14]
[354556911,1740574260208,-500.0,0.00041369,14]
[354556912,1740574260219,-500.0,0.00041369,14]
[354556913,1740574260230,-193.64152775,0.00041369,14]
[354556914,1740574260242,-500.0,0.00041369,14]
[354556915,1740574260252,-1074.29,0.00041369,14]
[354556916,1740574260262,-697.19,0.00041369,14]
[354556917,1740574260273,-1444.59,0.00041369,14]
[354556918,1740574260283,-500.0,0.00041369,14]
[354556919,1740574260293,-1757.46,0.00041369,14]
[354556920,1740574260303,-1545.48,0.00041369,14]
[354556921,1740574260313,-500.0,0.00041369,14]
[354556922,1740574260323,-500.0,0.00041369,14]
[354556923,1740574260334,-1191.57,0.00041369,14]
[354556924,1740574260344,-1345.37,0.00041369,14]
[354556925,1740574260354,-691.68,0.00041369,14]
[354556926,1740574260367,-500.0,0.00041369,14]
[354556927,1740574260377,-500.0,0.00041369,14]
[354556928,1740574260387,-500.0,0.00041369,14]
[354556929,1740574260397,-950.59,0.00041369,14]
[354556930,1740574260407,-1425.97,0.00041369,14]
[354556931,1740574260417,-5017.67,0.00041369,14]
[354556932,1740574260428,-500.0,0.00041369,14]
[354556933,1740574260438,-500.0,0.00041369,14]
[354556934,1740574260448,-847.2,0.00041369,14]
[354556935,1740574260458,-696.84,0.00041369,14]
[354556936,1740574260468,-928.45,0.00041369,14]
[354556937,1740574260478,-1582.78,0.00041369,14]
[354556938,1740574260488,-1603.54,0.00041369,14]
[354556939,1740574260498,-2298.0,0.00041369,14]
[354556940,1740574260510,-2568.74,0.00041369,14]
[354556941,1740574260520,-500.0,0.00041369,14]
[354556942,1740574260530,-821.14,0.00041369,14]
[354556943,1740574260541,-399.55293197,0.00041369,14]
[354556944,1740574260551,-500.0,0.00041369,14]
[354556945,1740574260566,-500.0,0.00041369,14]
[354556946,1740574260577,-624.89,0.00041369,14]
[354556947,1740574260587,-610.91,0.00041369,14]
[354556948,1740574260598,-500.0,0.00041369,14]
[354556949,1740574260968,-500.0,0.00041369,14]
[354556950,1740574260990,-500.0,0.00041369,14]
[354556951,1740574260999,-2578.15,0.00041369,14]
[354556952,1740574261009,-500.0,0.00041369,14]
[354556953,1740574261018,-3156.32,0.00041369,14]
[354556954,1740574261028,-1146.73,0.00041369,14]
[354556955,1740574261038,-569.38,0.00041369,14]
[354556956,1740574261048,-512.58772769,0.00041369,14]
[354556957,1740574261059,-1105.2,0.00041369,14]
[354556958,1740574261069,-506.65709813,0.00041369,14]
[354556959,1740574261078,-500.0,0.00041369,14]
[354556960,1740574261089,-1570.42,0.00041369,14]
[354556961,1740574261098,-823.13,0.00041369,14]
[354556962,1740574261111,-678.3,0.00041369,14]
[354556963,1740574261122,-1961.2,0.00041369,14]
[354556964,1740574261134,-500.0,0.00041369,14]
[354556965,1740574261149,-2032.6,0.00041369,14]
[354556966,1740574261159,-1087.49,0.00041369,14]
[354556967,1740574261169,-500.0,0.00041369,14]
[354556968,1740574261179,-647.93,0.00041369,14]
[354556969,1740574261193,-500.0,0.00041369,14]
[354556970,1740574261203,-1104.4,0.00041369,14]
[354556971,1740574261213,-500.0,0.00041369,14]
[354556972,1740574261223,-258.34422891,0.00041369,14]
[354556973,1740574261232,-501.70066358,0.00041369,14]
[354556974,1740574261242,-1872.57,0.00041369,14]
[354556975,1740574261253,-1063.06,0.00041369,14]
[354556976,1740574261265,-500.0,0.00041369,14]
[354556977,1740574261276,-500.0,0.00041369,14]
[354556978,1740574261286,-500.0,0.00041369,14]
[354556979,1740574261296,-500.0,0.00041369,14]
[354556980,1740574261306,-508.79318134,0.00041369,14]
[354556981,1740574261316,-500.0,0.00041369,14]
[354556982,1740574261326,-500.66,0.00041369,14]
[354556983,1740574261335,-756.41,0.00041369,14]
[354556984,1740574261345,-619.6,0.00041369,14]
[354556985,1740574261355,-559.10602973,0.00041369,14]
[354556986,1740574261367,-500.0,0.00041369,14]
[354556987,1740574261377,-2475.12,0.00041369,14]
[354556988,1740574261387,-500.0,0.00041369,14]
[354556989,1740574261397,-500.0,0.00041369,14]
[354556990,1740574261406,-491.81071135,0.00041369,14]
[354556991,1740574261415,-500.0,0.00041369,14]
[354556992,1740574261425,-1179.48,0.00041369,14]
[354556993,1740574261434,-1724.37,0.00041369,14]
[354556994,1740574261443,-1227.13,0.00041369,14]
[354556995,1740574261453,-1330.19,0.00041369,14]
[354556996,1740574261462,-500.0,0.00041369,14]
[354556997,1740574261471,-506.39918457,0.00041369,14]
[354556998,1740574261481,-500.0,0.00041369,14]
[354556999,1740574261491,-513.41454895,0.00041369,14]
[354557000,1740574261501,-584.95,0.00041369,14]
[354557001,1740574261515,-510.64767742,0.00041369,14]
[354557002,1740574261525,-507.64903132,0.00041369,14]
[354557003,1740574261535,-2372.45,0.00041369,14]
[354557004,1740574261546,-500.0,0.00041369,14]
[354557005,1740574261558,-673.8,0.00041369,14]
[354557006,1740574261568,-500.0,0.00041369,14]
[354557007,1740574261578,-500.0,0.00041369,14]
[354557008,1740574261589,-2444.59,0.00041369,14]
[354557009,1740574261601,-3529.85,0.00041369,14]
[354557010,1740574261614,-322.88530699,0.00041369,14]
[354557011,1740574261624,-509.48165245,0.00041369,14]
[354557012,1740574261634,-538.02,0.00041369,14]
[354557013,1740574261643,-500.0,0.00041369,14]
[354557014,1740574261652,-500.0,0.00041369,14]
[354557015,1740574261663,-1209.49,0.00041369,14]
[354557016,1740574261672,-983.67,0.00041369,14]
[354557017,1740574261682,-500.0,0.00041369,14]
[354557018,1740574261691,-1500.98,0.00041369,14]
[354557019,1740574261701,-500.0,0.00041369,14]
[354557020,1740574261711,-901.53,0.00041369,14]
[354557021,1740574261721,-1420.08,0.00041369,14]
[354557022,1740574261730,-500.0,0.00041369,14]
[354557023,1740574261739,-2314.83,0.00041369,14]
[354557024,1740574261749,-500.0,0.00041369,14]
[354557025,1740574261758,-366.36342692,0.00041369,14]
[354557026,1740574261768,-498.31955937,0.00041369,14]
[354557027,1740574261778,-2050.0,0.00041369,14]
[354557028,1740574261787,-500.0,0.00041369,14]
[354557029,1740574261797,-500.0,0.00041369,14]
[354557030,1740574261807,-1281.21,0.00041369,14]
[354557031,1740574261816,-1735.4,0.00041369,14]
[354557032,1740574261826,-511.25,0.00041369,14]
[354557033,1740574261836,-579.58,0.00041369,14]
[354557034,1740574261846,-406.42648416,0.00041369,14]
[354557035,1740574261856,-500.0,0.00041369,14]
[354557036,1740574261869,-500.0,0.00041369,14]
[354557037,1740574261882,-500.0,0.00041369,14]
[354557038,1740574261892,-1942.92,0.00041369,14]
[354557039,1740574261903,-500.0,0.00041369,14]
[354557040,1740574261913,-500.0,0.00041369,14]
[354557041,1740574261923,-500.0,0.00041369,14]
[354557042,1740574261934,-1668.57,0.00041369,14]
[354557043,1740574261944,-500.0,0.00041369,14]
[354557044,1740574261954,-529.49,0.00041369,14]
[354557045,1740574261963,-1899.64,0.00041369,14]
[354557046,1740574261973,-1053.46,0.00041369,14]
[354557047,1740574261983,-500.0,0.00041369,14]
[354557048,1740574261993,-1050.4,0.00041369,14]
[354557049,1740574262002,-1488.98,0.00041369,14]
[354557050,1740574262012,-500.0,0.00041369,14]
[354557051,1740574262022,-1080.14,0.00041369,14]
[354557052,1740574262032,-500.0,0.00041369,14]
[354557053,1740574262041,-501.43933648,0.00041369,14]
[354557054,1740574262051,-500.0,0.00041369,14]
[354557055,1740574262061,-949.33,0.00041369,14]
[354557056,1740574262070,-1162.22,0.00041369,14]
[354557057,1740574262081,-500.0,0.00041369,14]
[354557058,1740574262094,-619.20977604,0.00041369,14]
[354557059,1740574262104,-500.0,0.00041369,14]
[354557060,1740574262119,-1577.0,0.00041369,14]
[354557061,1740574262129,-500.0,0.00041369,14]
[354557062,1740574262139,-555.55336183,0.00041369,14]
[354557063,1740574262149,-546.53,0.00041369,14]
[354557064,1740574262158,-1998.09,0.00041369,14]
[354557065,1740574262168,-1125.99,0.00041369,60]
[354557066,1740574262178,-500.0,0.00041369,14]
[354557067,1740574262187,-522.12,0.00041369,14]
[354557068,1740574262197,-500.0,0.00041369,14]
[354557069,1740574262207,-661.11,0.00041369,14]
[354557070,1740574262216,-500.0,0.00041369,14]
[354557071,1740574262227,-500.0,0.00041369,14]
[354557072,1740574262237,-615.64,0.00041369,14]
[354557073,1740574262247,-1980.48,0.00041369,14]
[354557074,1740574262256,-500.0,0.00041369,14]
[354557075,1740574262266,-606.73,0.00041369,14]
[354557076,1740574262276,-158.409705,0.00041369,14]
[354557077,1740574262286,-1526.5,0.00041369,14]
[354557078,1740574262296,-500.0,0.00041369,14]
[354557079,1740574262305,-500.0,0.00041369,14]
[354557080,1740574262315,-500.0,0.00041369,14]
[354557081,1740574262324,-505.47,0.00041369,14]
[354557082,1740574262334,-1411.36,0.00041369,14]
[354557083,1740574262343,-1366.82,0.00041369,14]
[354557084,1740574262353,-893.99,0.00041369,14]
[354557085,1740574262364,-500.0,0.00041369,14]
[354557086,1740574262374,-2624.83,0.00041369,14]
[354557087,1740574262384,-544.27009845,0.00041369,14]
[354557088,1740574262395,-905.11,0.00041369,14]
[354557089,1740574262406,-779.37,0.00041369,14]
[354557090,1740574262417,-500.0,0.00041369,14]
[354557091,1740574262427,-500.0,0.00041369,14]
[354557092,1740574262438,-500.0,0.00041369,14]
[354557093,1740574262448,-500.0,0.00041369,14]
[354557094,1740574262458,-500.0,0.00041369,14]
[354557095,1740574262468,-501.0115519,0.00041369,14]
[354557096,1740574262479,-1412.34,0.00041369,14]
[354557097,1740574262489,-500.0,0.00041369,14]
[354557098,1740574262499,-1668.45,0.00041369,14]
[354557099,1740574262512,-885.59,0.00041369,14]
[354557100,1740574262528,-907.5,0.00041369,14]
[354557101,1740574262538,-509.8879783,0.00041369,14]
[354557102,1740574262549,-500.0,0.00041369,14]
[354557103,1740574262559,-1775.54,0.00041369,14]
[354557104,1740574262570,-1266.21,0.00041369,14]
[354557105,1740574262579,-500.0,0.00041369,14]
[354557106,1740574262590,-505.29631163,0.00041369,14]
[354557107,1740574262599,-500.0,0.00041369,14]
[354557108,1740574262610,-890.84,0.00041369,14]
[354557109,1740574262620,-617.6,0.00041369,14]
[354557110,1740574262631,-504.87583723,0.00041369,14]
[354557111,1740574262642,-500.0,0.00041369,14]
[354557112,1740574262652,-500.0,0.00041369,14]
[354557113,1740574262662,-636.43,0.00041369,14]
[354557114,1740574262671,-1022.26,0.00041369,14]
[354557115,1740574262681,-503.64316961,0.00041369,14]
[354557116,1740574262691,-1493.14,0.00041369,14]
[354557117,1740574262700,-3457.82,0.00041369,14]
[354557118,1740574262711,-1199.79,0.00041369,14]
[354557119,1740574262720,-515.63259726,0.00041369,14]
[354557120,1740574262730,-1340.84,0.00041369,14]
[354557121,1740574262740,-508.96595421,0.00041369,14]
[354557122,1740574262751,-790.19,0.00041369,14]
[354557123,1740574262763,-500.0,0.00041369,14]
[354557124,1740574262772,-1018.91,0.00041369,14]
[354557125,1740574262782,-501.65353154,0.00041369,14]
[354557126,1740574262791,-500.0,0.00041369,14]
[354557127,1740574262801,-500.0,0.00041369,14]
[354557128,1740574262811,-1109.52,0.00041369,14]
[354557129,1740574262821,-500.0,0.00041369,14]
[354557130,1740574262831,-500.0,0.00041369,14]
[354557131,1740574262840,-500.0,0.00041369,14]
[354557132,1740574262850,-281.51711136,0.00041369,14]
[354557133,1740574262862,-500.0,0.00041369,14]
[354557134,1740574262871,-2063.9,0.00041369,14]
[354557135,1740574262881,-1425.42,0.00041369,14]
[354557136,1740574262890,-606.87,0.00041369,14]
[354557137,1740574262900,-567.76,0.00041369,14]
[354557138,1740574262910,-500.0,0.00041369,14]
[354557139,1740574262919,-1883.72,0.00041369,14]
[354557140,1740574262929,-500.0,0.00041369,14]
[354557141,1740574262941,-797.24,0.00041369,14]
[354557142,1740574262950,-920.65,0.00041369,14]
[354557143,1740574262960,-500.0,0.00041369,14]
[354557144,1740574262970,-1330.12,0.00041369,14]
[354557145,1740574262980,-3171.04,0.00041369,14]
[354557146,1740574262990,-1240.73,0.00041369,14]
[354557147,1740574262999,-500.0,0.00041369,14]
[354557148,1740574263009,-500.0,0.00041369,14]
[354557149,1740574263018,-507.48854594,0.00041369,14]
[354557150,1740574263028,-500.0,0.00041369,14]
[354557151,1740574263038,-500.0,0.00041369,14]
[354557152,1740574263047,-500.0,0.00041369,14]
[354557153,1740574263057,-2917.17,0.00041369,14]
[354557154,1740574263067,-503.01330352,0.00041369,14]
[354557155,1740574263077,-1355.59,0.00041369,14]
[354557156,1740574263086,-500.0,0.00041369,14]
[354557157,1740574263097,-534.79,0.00041369,14]
[354557158,1740574263107,-478.85895716,0.00041369,14]
[354557159,1740574263123,-1937.46,0.00041369,14]
[354557160,1740574263134,-646.91,0.00041369,14]
[354557161,1740574263145,-4905.64,0.00041369,14]
[354557162,1740574263156,-508.60960186,0.00041369,14]
[354557163,1740574263167,-500.0,0.00041369,14]
[354557164,1740574263178,-821.61,0.00041369,14]
[354557165,1740574263189,-500.0,0.00041369,14]
[354557166,1740574263200,-500.0,0.00041369,14]
[354557167,1740574263211,-954.87,0.00041369,14]
[354557168,1740574263222,-500.79929574,0.00041369,14]
[354557169,1740574263233,-504.44477377,0.00041369,14]
[354557170,1740574263244,-4027.49,0.00041369,14]
[354557171,1740574263255,-15167.76,0.00041369,14]
[354557172,1740574263266,-500.0,0.00041369,14]
[354557173,1740574263287,-929.0,0.00041369,14]
[354557174,1740574263298,-500.0,0.00041369,14]
[354557175,1740574263309,-1132.01,0.00041369,14]
[354557176,1740574263320,-567.55,0.00041369,14]
[354557177,1740574263331,-2685.08,0.00041369,14]
[354557178,1740574263341,-605.36,0.00041369,14]
[354557179,1740574263351,-500.0,0.00041369,14]
[354557180,1740574263364,-2664.98,0.00041369,14]
[354557181,1740574263374,-500.0,0.00041369,14]
[354557182,1740574263384,-1054.41,0.00041369,7]
[354557183,1740574263394,-2774.92,0.00041369,14]
[354557184,1740574263405,-509.39497481,0.00041369,14]
[354557185,1740574263415,-500.0,0.00041369,14]
[354557186,1740574263564,-3037.89,0.00041369,14]
[354557187,1740574263577,-500.0,0.00041369,14]
[354557188,1740574263588,-590.85,0.00041369,14]
[354557189,1740574263599,-502.16642322,0.00041369,14]
[354557190,1740574263612,-180.00107178,0.00041369,14]
[354557191,1740574263623,-559.19,0.00041369,14]
[354557192,1740574263633,-2967.03,0.00041369,14]
[354557193,1740574263644,-500.0,0.00041369,14]
[354557194,1740574263655,-500.0,0.00041369,14]
[354557195,1740574263666,-628.02,0.00041369,14]
[354557196,1740574263677,-838.31,0.00041369,14]
[354557197,1740574263687,-3950.82,0.00041369,14]
[354557198,1740574263698,-4280.75,0.00041369,14]
[354557199,1740574263708,-2007.93,0.00041369,14]
[354557200,1740574263718,-500.0,0.00041369,14]
[354557201,1740574263728,-1744.25,0.00041369,14]
[354557202,1740574263739,-1160.29,0.00041369,14]
[354557203,1740574263749,-2852.03,0.00041369,14]
[354557204,1740574263759,-582.19,0.00041369,14]
[354557205,1740574263769,-13777.25,0.00041369,14]
[354557206,1740574263779,-500.0,0.00041369,14]
[354557207,1740574263790,-9183.41,0.00041369,14]
[354557208,1740574263800,-500.0,0.00041369,14]
[354557209,1740574263810,-2967.19,0.00041369,14]
[354557210,1740574263820,-585.81,0.00041369,14]
[354557211,1740574263830,-500.0,0.00041369,14]
[354557212,1740574263840,-500.0,0.00041369,14]
[354557213,1740574263851,-500.0,0.00041369,14]
[354557214,1740574263863,-1333.26,0.00041369,14]
[354557215,1740574263874,-1627.91,0.00041369,14]
[354557216,1740574263884,-500.0,0.00041369,14]
[354557217,1740574263895,-500.0,0.00041369,14]
[354557218,1740574263905,-500.0,0.00041369,14]
[354557219,1740574263914,-493.4442368,0.00041369,14]
[354557220,1740574263924,-3945.61,0.00041369,14]
[354557221,1740574263934,-1112.31,0.00041369,14]
[354557222,1740574263943,-3206.91,0.00041369,2]
[354557223,1740574263953,-3692.8,0.00041369,14]
[354557224,1740574263963,-2102.63,0.00041369,14]
[354557225,1740574263974,-500.0,0.00041369,14]
[354557226,1740574263984,-816.89,0.00041369,14]
[354557227,1740574263995,-500.0,0.00041369,14]
[354557228,1740574264006,-500.0,0.00041369,14]
[354557229,1740574264017,-709.18,0.00041369,14]
[354557230,1740574264027,-500.0,0.00041369,14]
[354557231,1740574264037,-500.0,0.00041369,14]
[354557232,1740574264047,-3421.82,0.00041369,14]
[354557233,1740574264058,-810.67,0.00041369,14]
[354557234,1740574264068,-1066.3,0.00041369,14]
[354557235,1740574264079,-3249.24,0.00041369,14]
[354557236,1740574264089,-9897.88,0.00041369,14]
[354557237,1740574264100,-2208.96,0.00041369,14]
[354557238,1740574264111,-2621.22,0.00041369,14]
[354557239,1740574264126,-2306.95,0.00041369,14]
[354557240,1740574264136,-517.96,0.00041369,14]
[354557241,1740574264146,-1514.41,0.00041369,14]
[354557242,1740574264156,-500.0,0.00041369,14]
[354557243,1740574264167,-1239.68,0.00041369,14]
[354557244,1740574264177,-886.273132,0.00041369,14]
[354557245,1740574264187,-1548.32,0.00041369,14]
[354557246,1740574264197,-500.0,0.00041369,14]
[354557247,1740574264207,-17165.99,0.00041369,14]
[354557248,1740574264217,-2147.72,0.00041369,14]
[354557249,1740574264227,-3688.66,0.00041369,14]
[354557250,1740574264237,-1732.56,0.00041369,14]
[354557251,1740574264247,-500.0,0.00041369,14]
[354557252,1740574264258,-500.0,0.00041369,14]
[354557253,1740574264269,-500.0,0.00041369,14]
[354557254,1740574264279,-1096.33,0.00041369,14]
[354557255,1740574264289,-500.0,0.00041369,14]
[354557256,1740574264300,-3182.68,0.00041369,14]
[354557257,1740574264310,-1923.09,0.00041369,14]
[354557258,1740574264321,-1459.77,0.00041369,14]
[354557259,1740574264332,-1025.83,0.00041369,14]
[354557260,1740574264342,-2566.88,0.00041369,14]
[354557261,1740574264352,-500.0,0.00041369,14]
[354557262,1740574264367,-809.92,0.00041369,14]
[354557263,1740574264383,-16965.87,0.00041369,14]
[354557264,1740574264394,-500.0,0.00041369,14]
[354557265,1740574264404,-500.0,0.00041369,14]
[354557266,1740574264414,-559.96,0.00041369,14]
[354557267,1740574264424,-500.0,0.00041369,14]
[354557268,1740574264435,-5873.86,0.00041369,14]
[354557269,1740574264445,-502.3755358,0.00041369,14]
[354557270,1740574264456,-2852.04,0.00041369,14]
[354557271,1740574264466,-2043.579837,0.00041369,14]
[354557272,1740574264477,-500.0,0.00041369,14]
[354557273,1740574264487,-935.32,0.00041369,14]
[354557274,1740574264497,-8433.31,0.00041369,14]
[354557275,1740574264508,-500.0,0.00041369,14]
[354557276,1740574264524,-500.0,0.00041369,14]
[354557277,1740574264533,-500.0,0.00041369,14]
[354557278,1740574264544,-500.0,0.00041369,14]
[354557279,1740574264555,-502.32221236,0.00041369,14]
[354557280,1740574264565,-500.0,0.00041369,14]
[354557281,1740574264577,-500.0,0.00041369,14]
[354557282,1740574264587,-500.0,0.00041369,14]
[354557283,1740574264596,-500.0,0.00041369,14]
[354557284,1740574264606,-3995.65,0.00041369,14]
[354557285,1740574264618,-1002.59,0.00041369,14]
[354557286,1740574264628,-507.94465645,0.00041369,14]
[354557287,1740574264637,-3586.62,0.00041369,14]
[354557288,1740574264647,-500.0,0.00041369,14]
[354557289,1740574264656,-500.0,0.00041369,14]
[354557290,1740574264665,-2822.07,0.00041369,14]
[354557291,1740574264675,-412.14,0.00041369,14]
[354557292,1740574264684,-1881.92,0.00041369,14]
[354557293,1740574264697,-3335.64,0.00041369,14]
[354557294,1740574264709,-2288.62,0.00041369,14]
[354557295,1740574264719,-500.0,0.00041369,14]
[354557296,1740574264728,-1104.45,0.00041369,14]
[354557297,1740574264740,-500.0,0.00041369,14]
[354557298,1740574264750,-502.42489905,0.00041369,14]
[354557299,1740574264759,-500.0,0.00041369,14]
[354557300,1740574264769,-500.0,0.00041369,14]
[354557301,1740574264779,-675.99,0.00041369,14]
[354557302,1740574264789,-334.57557715,0.00041369,14]
[354557303,1740574264799,-1755.33,0.00041369,14]
[354557304,1740574264808,-3821.66,0.00041369,14]
[354557305,1740574264818,-560.11,0.00041369,14]
[354557306,1740574264827,-1971.44,0.00041369,14]
[354557307,1740574264836,-4281.7,0.00041369,14]
[354557308,1740574264845,-4780.59,0.00041369,14]
[354557309,1740574264855,-772.66,0.00041369,14]
[354557310,1740574264866,-3225.48,0.00041369,14]
[354557311,1740574264876,-507.10060328,0.00041369,14]
[354557312,1740574264885,-2166.49,0.00041369,14]
[354557313,1740574264894,-516.46382008,0.00041369,14]
[354557314,1740574264903,-500.0,0.00041369,14]
[354557315,1740574264913,-2515.28,0.00041369,14]
[354557316,1740574264922,-500.0,0.00041369,14]
[354557317,1740574264932,-500.0,0.00041369,14]
[354557318,1740574264942,-501.64304052,0.00041369,14]
[354557319,1740574264951,-500.0,0.00041369,14]
[354557320,1740574264961,-2394.72,0.00041369,14]
[354557321,1740574264971,-500.0,0.00041369,14]
[354557322,1740574264980,-5474.4,0.00041369,14]
[354557323,1740574264993,-570.59,0.00041369,14]
[354557324,1740574265002,-1115.74,0.00041369,14]
[354557325,1740574265011,-1807.01,0.00041369,14]
[354557326,1740574265021,-2593.04,0.00041369,14]